lending/lending_fUSD_20240621
["ID","MTS","AMOUNT","RATE_DAILY","PERIOD"]
[330089281,1718989907095,-520.63,0.00025468,4]
[330089282,1718989907107,-500.0,0.00025468,4]
[330089283,1718989907120,-500.0,0.00025468,4]
[330089284,1718989907130,-750.4,0.00025468,4]
[330089285,1718989907140,-500.0,0.00025468,4]
[330089286,1718989907151,-500.0,0.00025468,4]
[330089287,1718989907161,-500.0,0.00025468,4]
[330089288,1718989907170,-500.0,0.00025468,4]
[330089289,1718989907180,-674.53,0.00025468,4]
[330089290,1718989907190,-919.98,0.00025468,4]
[330089291,1718989907200,-1723.58,0.00025468,4]
[330089292,1718989907211,-500.0,0.00025468,4]
[330089293,1718989907220,-572.44,0.00025468,4]
[330089294,1718989907231,-966.63,0.00025468,4]
[330089295,1718989907241,-500.0,0.00025468,4]
[330089296,1718989907251,-574.64,0.00025468,4]
[330089297,1718989907261,-500.0,0.00025468,4]
[330089298,1718989907271,-551.74,0.00025468,4]
[330089299,1718989907280,-500.0,0.00025468,4]
[330089300,1718989907290,-853.88,0.00025468,4]
[330089301,1718989907299,-769.31,0.00025468,4]
[330089302,1718989907308,-2295.96,0.00025468,5]
[330089303,1718989907318,-500.0,0.00025468,4]
[330089304,1718989907327,-584.18,0.00025468,4]
[330089305,1718989907337,-754.91,0.00025468,4]
[330089306,1718989907347,-500.0,0.00025468,4]
[330089307,1718989907357,-920.79,0.00025468,4]
[330089308,1718989907366,-2478.71,0.00025468,4]
[330089309,1718989907376,-843.52,0.00025468,4]
[330089310,1718989907385,-667.94,0.00025468,4]
[330089311,1718989907395,-878.77,0.00025468,4]
[330089312,1718989907404,-1915.42,0.00025468,4]
[330089313,1718989907413,-500.0,0.00025468,4]
[330089314,1718989907423,-1207.42,0.00025468,4]
[330089315,1718989907432,-500.0,0.00025468,4]
[330089316,1718989907441,-944.02,0.00025468,4]
[330089317,1718989907451,-1304.29,0.00025468,4]
[330089318,1718989907462,-500.0,0.00025468,4]
[330089319,1718989907471,-729.79,0.00025468,4]
[330089320,1718989907482,-1256.24,0.00025468,4]
[330089321,1718989907493,-1422.04,0.00025468,4]
[330089322,1718989907505,-656.57,0.00025468,4]
[330089323,1718989907515,-1852.92,0.00025468,4]
[330089324,1718989907525,-625.57,0.00025468,4]
[330089325,1718989907535,-593.44673842,0.00025468,4]
[330089326,1718989907545,-666.91,0.00025468,4]
[330089327,1718989907556,-1499.6,0.00025468,4]
[330089328,1718989907566,-765.5,0.00025468,4]
[330089329,1718989907576,-2424.04,0.00025468,4]
[330089330,1718989907587,-500.0,0.00025468,4]
[330089331,1718989907598,-4987.88,0.00025468,4]
[330089332,1718989907607,-2211.22,0.00025468,4]
[330089333,1718989907617,-787.23,0.00025468,4]
[330089334,1718989907626,-915.87,0.00025468,4]
[330089335,1718989907635,-637.63,0.00025468,4]
[330089336,1718989907645,-1221.9,0.00025468,4]
[330089337,1718989907654,-1018.75,0.00025468,4]
[330089338,1718989907664,-501.59,0.00025468,4]
[330089339,1718989907674,-500.0,0.00025468,4]
[330089340,1718989907683,-500.0,0.00025468,4]
[330089341,1718989907692,-869.8,0.00025468,4]
[330089342,1718989907702,-500.0,0.00025468,8]
[330089343,1718989907711,-748.62,0.00025468,4]
[330089344,1718989907720,-2336.91,0.00025468,4]
[330089345,1718989907730,-1361.85,0.00025468,4]
[330089346,1718989907739,-1018.85,0.00025468,4]
[330089347,1718989907748,-16289.33,0.00025468,4]
[330089348,1718989907757,-2349.59,0.00025468,4]
[330089349,1718989907766,-650.0,0.00025468,4]
[330089350,1718989907775,-500.0,0.00025468,4]
[330089351,1718989907784,-979.16,0.00025468,4]
[330089352,1718989907793,-772.03,0.00025468,4]
[330089353,1718989907803,-1085.42,0.00025468,4]
[330089354,1718989907812,-1856.06,0.00025468,4]
[330089355,1718989907821,-581.94,0.00025468,4]
[330089356,1718989907830,-1071.94,0.00025468,4]
[330089357,1718989907839,-500.0,0.00025468,4]
[330089358,1718989907848,-676.76,0.00025468,4]
[330089359,1718989907857,-1530.22,0.00025468,4]
[330089360,1718989907866,-500.0,0.00025468,4]
[330089361,1718989907875,-1352.93,0.00025468,4]
[330089362,1718989907884,-828.24,0.00025468,4]
[330089363,1718989907893,-1938.16,0.00025468,4]
[330089364,1718989907902,-758.24,0.00025468,4]
[330089365,1718989907912,-500.0,0.00025468,4]
[330089366,1718989907921,-478.23,0.00025468,4]
[330089367,1718989907934,-500.0,0.00025468,4]
[330089368,1718989908052,-500.0,0.00025468,4]
[330089369,1718989908062,-556.62,0.00025468,4]
[330089370,1718989908071,-2348.18,0.00025468,4]
[330089371,1718989908082,-500.0,0.00025468,4]
[330089372,1718989908092,-2261.53,0.00025468,4]
[330089373,1718989908106,-500.0,0.00025468,4]
[330089374,1718989908116,-600.2,0.00025468,4]
[330089375,1718989908126,-200.0,0.00025468,7]
[330089376,1718989908136,-1091.2,0.00025468,4]
[330089377,1718989908147,-1100.71,0.00025468,4]
[330089378,1718989908156,-12938.97,0.00025468,4]
[330089379,1718989908166,-1965.19,0.00025468,4]
[330089380,1718989908176,-638.92,0.00025468,4]
[330089381,1718989908186,-635.23,0.00025468,4]
[330089382,1718989908197,-1762.14,0.00025468,4]
[330089383,1718989908207,-992.0,0.00025468,4]
[330089384,1718989908217,-1859.99,0.00025468,4]
[330089385,1718989908227,-656.75,0.00025468,4]
[330089386,1718989908236,-2222.41,0.00025468,4]
[330089387,1718989908246,-860.86,0.00025468,4]
[330089388,1718989908256,-1049.63,0.00025468,4]
[330089389,1718989908266,-672.47,0.00025468,4]
[330089390,1718989908276,-500.0,0.00025468,4]
[330089391,1718989908286,-3375.56,0.00025468,4]
[330089392,1718989908296,-2480.67,0.00025468,4]
[330089393,1718989908306,-652.86,0.00025468,4]
[330089394,1718989908315,-2569.55,0.00025468,4]
[330089395,1718989908325,-500.0,0.00025478,4]
[330089396,1718989908334,-1833.6,0.00025478,4]
[330089397,1718989908344,-1662.17,0.00025478,4]
[330089398,1718989908353,-1196.01,0.00025478,4]
[330089399,1718989908364,-1323.04,0.00025478,4]
[330089400,1718989908374,-1815.14,0.00025478,4]
[330089401,1718989908384,-1488.18,0.00025478,4]
[330089402,1718989908394,-657.08,0.00025478,4]
[330089403,1718989908404,-794.21,0.00025478,4]
[330089404,1718989908414,-2173.9,0.00025478,4]
[330089405,1718989908425,-1700.13,0.00025478,4]
[330089406,1718989908435,-703.12,0.00025478,4]
[330089407,1718989908445,-500.0,0.00025478,4]
[330089408,1718989908455,-500.0,0.00025478,4]
[330089409,1718989908464,-1792.19,0.00025478,4]
[330089410,1718989908474,-645.07,0.00025478,4]
[330089411,1718989908485,-500.0,0.00025478,4]
[330089412,1718989908496,-500.0,0.00025478,4]
[330089413,1718989908505,-831.31,0.00025478,4]
[330089414,1718989908516,-1274.46,0.00025478,4]
[330089415,1718989908527,-500.0,0.00025478,4]
[330089416,1718989908537,-500.0,0.00025478,4]
[330089417,1718989908547,-1390.32,0.00025478,4]
[330089418,1718989908557,-2085.31,0.00025478,4]
[330089419,1718989908566,-2038.36,0.00025478,4]
[330089420,1718989908576,-500.0,0.00025478,4]
[330089421,1718989908586,-961.12,0.00025478,4]
[330089422,1718989908596,-875.07,0.00025478,4]
[330089423,1718989908606,-500.0,0.00025478,4]
[330089424,1718989908616,-727.93,0.00025478,4]
[330089425,1718989908625,-1432.85,0.00025478,4]
[330089426,1718989908638,-1981.72,0.00025478,4]
[330089427,1718989908649,-500.0,0.00025478,4]
[330089428,1718989908659,-1176.2,0.00025478,4]
[330089429,1718989908671,-500.0,0.00025478,4]
[330089430,1718989908682,-1836.11,0.00025478,4]
[330089431,1718989908692,-1666.62,0.00025478,4]
[330089432,1718989908702,-1088.29,0.00025478,4]
[330089433,1718989908712,-500.0,0.00025478,4]
[330089434,1718989908722,-500.0,0.00025478,4]
[330089435,1718989908731,-500.0,0.00025478,4]
[330089436,1718989908741,-1712.42,0.00025478,4]
[330089437,1718989908752,-864.04,0.00025478,4]
[330089438,1718989908762,-1441.44,0.00025478,4]
[330089439,1718989908771,-500.0,0.00025478,4]
[330089440,1718989908783,-664.38,0.00025478,4]
[330089441,1718989908793,-914.89,0.00025478,4]
[330089442,1718989908803,-1656.03,0.00025478,4]
[330089443,1718989908813,-2699.53,0.00025478,4]
[330089444,1718989908823,-1310.25,0.00025478,4]
[330089445,1718989908833,-4009.92,0.00025478,4]
[330089446,1718989908842,-1193.59,0.00025478,4]
[330089447,1718989908852,-500.0,0.00025479,3]
[330089448,1718989908862,-500.0,0.00025479,4]
[330089449,1718989908872,-710.94,0.00025479,4]
[330089450,1718989908881,-500.0,0.00025479,4]
[330089451,1718989908895,-797.24,0.00025479,4]
[330089452,1718989908905,-617.5,0.00025479,4]
[330089453,1718989908915,-500.0,0.00025479,4]
[330089454,1718989908925,-500.0,0.00025479,4]
[330089455,1718989908935,-798.04,0.00025479,4]
[330089456,1718989908945,-735.75,0.00025479,4]
[330089457,1718989908954,-500.0,0.00025479,4]
[330089458,1718989908964,-500.0,0.00025479,4]
[330089459,1718989908974,-754.93,0.00025479,4]
[330089460,1718989908984,-595.79,0.00025479,4]
[330089461,1718989908993,-738.1,0.00025479,4]
[330089462,1718989909003,-1205.55,0.00025479,4]
[330089463,1718989909013,-500.0,0.00025479,2]
[330089464,1718989909022,-500.0,0.00025479,4]
[330089465,1718989909031,-522.35,0.00025479,4]
[330089466,1718989909041,-985.93,0.00025479,4]
[330089467,1718989909051,-500.0,0.00025479,4]
[330089468,1718989909060,-668.33,0.00025479,4]
[330089469,1718989909070,-548.21,0.00025479,4]
[330089470,1718989909080,-679.56,0.00025479,4]
[330089471,1718989909089,-500.0,0.00025479,4]
[330089472,1718989909100,-500.0,0.00025479,4]
[330089473,1718989909114,-500.0,0.00025479,4]
[330089474,1718989909124,-780.77,0.00025479,4]
[330089475,1718989909133,-582.75,0.00025479,4]
[330089476,1718989909143,-500.0,0.00025479,4]
[330089477,1718989909154,-500.0,0.00025479,4]
[330089478,1718989909165,-584.71,0.00025479,4]
[330089479,1718989909174,-563.5,0.00025479,4]
[330089480,1718989909187,-1042.2,0.00025479,4]
[330089481,1718989909198,-588.19,0.00025479,4]
[330089482,1718989909207,-687.44,0.00025479,4]
[330089483,1718989909217,-811.36,0.00025479,4]
[330089484,1718989909227,-717.66,0.00025479,4]
[330089485,1718989909236,-621.56,0.00025479,4]
[330089486,1718989909246,-531.24,0.00025479,4]
[330089487,1718989909257,-500.0,0.00025479,4]
[330089488,1718989909266,-1201.37,0.00025479,4]
[330089489,1718989909276,-500.0,0.00025479,4]
[330089490,1718989909286,-522.9,0.00025479,4]
[330089491,1718989909296,-742.2,0.00025479,4]
[330089492,1718989909306,-500.0,0.00025479,4]
[330089493,1718989909315,-1192.22,0.00025479,4]
[330089494,1718989909324,-174.5371762,0.00025479,4]
[330089495,1718989909334,-500.0,0.00025479,4]
[330089496,1718989909344,-938.16,0.00025479,4]
[330089497,1718989909353,-500.0,0.00025479,4]
[330089498,1718989909363,-1372.38,0.00025479,4]
[330089499,1718989909373,-500.0,0.00025479,4]
[330089500,1718989909382,-624.64,0.00025479,4]
[330089501,1718989909392,-1457.99,0.00025479,4]
[330089502,1718989909402,-511.55,0.00025479,4]
[330089503,1718989909412,-209.45398994,0.00025479,4]
[330089504,1718989909423,-595.44,0.00025479,4]
[330089505,1718989909436,-500.0,0.00025479,4]
[330089506,1718989909446,-963.23,0.00025479,4]
[330089507,1718989909456,-759.23,0.00025479,4]
[330089508,1718989909467,-1020.76,0.00025479,4]
[330089509,1718989909476,-500.0,0.00025479,4]
[330089510,1718989909486,-1064.78,0.00025479,4]
[330089511,1718989909496,-873.22,0.00025479,4]
[330089512,1718989909506,-733.93,0.00025479,4]
[330089513,1718989909515,-500.0,0.00025479,4]
[330089514,1718989909525,-2686.69,0.00025479,4]
[330089515,1718989909536,-1011.28,0.00025479,4]
[330089516,1718989909546,-852.94,0.00025479,4]
[330089517,1718989909556,-554.48,0.00025479,4]
[330089518,1718989909566,-500.0,0.00025479,4]
[330089519,1718989909575,-500.0,0.00025479,4]
[330089520,1718989909585,-500.0,0.00025479,4]
[330089521,1718989909595,-500.0,0.00025479,4]
[330089522,1718989909605,-500.0,0.00025479,4]
[330089523,1718989909614,-500.0,0.00025479,4]
[330089524,1718989909623,-768.74,0.00025479,4]
[330089525,1718989909633,-1467.03,0.00025479,4]
[330089526,1718989909642,-1066.65,0.00025479,4]
[330089527,1718989909652,-500.0,0.00025479,4]
[330089528,1718989909662,-735.92,0.00025479,4]
[330089529,1718989909672,-899.57,0.00025479,4]
[330089530,1718989909683,-1342.26,0.00025479,4]
[330089531,1718989909692,-500.0,0.00025479,4]
[330089532,1718989909703,-585.36,0.00025479,4]
[330089533,1718989909722,-509.69,0.00025479,4]
[330089534,1718989909731,-667.28,0.00025479,4]
[330089535,1718989909741,-500.0,0.00025479,4]
[330089536,1718989909751,-858.28,0.00025479,4]
[330089537,1718989909760,-2179.3,0.00025479,4]
[330089538,1718989909770,-906.35,0.00025479,4]
[330089539,1718989909780,-559.84,0.00025479,4]
[330089540,1718989909790,-1415.8,0.00025479,4]
[330089541,1718989909799,-1930.31,0.00025479,4]
[330089542,1718989909808,-1505.14,0.00025479,4]
[330089543,1718989909818,-859.86,0.00025479,4]
[330089544,1718989909828,-500.0,0.00025479,4]
[330089545,1718989909839,-642.24,0.00025479,4]
[330089546,1718989909848,-1397.1,0.00025479,4]
[330089547,1718989909858,-602.59,0.00025479,4]
[330089548,1718989909868,-570.91,0.00025479,4]
[330089549,1718989909877,-500.0,0.00025479,4]
[330089550,1718989909887,-669.19,0.00025479,4]
[330089551,1718989909898,-1901.91,0.00025479,4]
[330089552,1718989909908,-1273.57,0.00025479,4]
[330089553,1718989909918,-500.0,0.00025479,4]
[330089554,1718989909927,-500.0,0.00025479,4]
[330089555,1718989909937,-963.28,0.00025479,4]
[330089556,1718989909947,-532.82,0.00025479,4]
[330089557,1718989909958,-500.0,0.00025479,4]
[330089558,1718989909968,-2148.29,0.00025479,4]
[330089559,1718989909978,-904.13,0.00025479,4]
[330089560,1718989909988,-1923.19,0.00025479,4]
[330089561,1718989909998,-1655.82,0.00025479,4]
[330089562,1718989910008,-500.0,0.00025479,4]
[330089563,1718989910017,-590.93,0.00025479,4]
[330089564,1718989910027,-511.56,0.00025479,4]
[330089565,1718989910037,-1612.01,0.00025479,4]
[330089566,1718989910047,-2137.42,0.00025479,4]
[330089567,1718989910056,-573.05,0.00025479,4]
[330089568,1718989910066,-3053.94,0.00025479,4]
[330089569,1718989910075,-500.0,0.00025479,4]
[330089570,1718989910085,-639.37,0.00025479,4]
[330089571,1718989910095,-682.46,0.00025479,4]
[330089572,1718989910107,-2243.82,0.00025479,4]
[330089573,1718989910122,-1600.73,0.00025479,4]
[330089574,1718989910131,-569.48414343,0.00025479,4]
[330089575,1718989910142,-696.06,0.00025479,4]
[330089576,1718989910153,-500.0,0.00025479,4]
[330089577,1718989910163,-1542.7,0.00025479,4]
[330089578,1718989910173,-1105.98,0.00025479,4]
[330089579,1718989910184,-1549.93,0.00025479,4]
[330089580,1718989910196,-2659.75,0.00025479,4]
[330089581,1718989910205,-833.57,0.00025479,4]
[330089582,1718989910216,-500.0,0.00025479,4]
[330089583,1718989910226,-500.0,0.00025479,4]
[330089584,1718989910235,-1158.3,0.00025479,4]
[330089585,1718989910244,-601.13939014,0.00025479,4]
[330089586,1718989910254,-533.64,0.00025479,4]
[330089587,1718989910572,-833.78,0.00025479,4]
[330089588,1718989910583,-685.86,0.00025479,4]
[330089589,1718989910593,-1289.2,0.00025479,4]
[330089590,1718989910603,-500.0,0.00025479,4]
[330089591,1718989910613,-1090.97,0.00025479,4]
[330089592,1718989910622,-599.47,0.00025479,4]
[330089593,1718989910632,-2819.08,0.00025479,4]
[330089594,1718989910642,-7009.44,0.00025479,4]
[330089595,1718989910652,-591.52,0.00025479,4]
[330089596,1718989910662,-1505.93,0.00025479,4]
[330089597,1718989910671,-824.93,0.00025479,4]
[330089598,1718989910681,-500.0,0.00025479,4]
[330089599,1718989910691,-3331.02,0.00025479,4]
[330089600,1718989910702,-1405.37,0.00025479,4]
[330089601,1718989910713,-5922.66,0.00025479,4]
[330089602,1718989910724,-905.75,0.00025479,4]
[330089603,1718989910735,-6608.91,0.00025479,4]
[330089604,1718989910746,-580.05,0.00025479,4]
[330089605,1718989910757,-500.0,0.00025479,4]
[330089606,1718989910767,-540.71,0.00025479,4]
[330089607,1718989910778,-838.13,0.00025479,4]
[330089608,1718989910790,-500.0,0.00025479,4]
[330089609,1718989910801,-823.35,0.00025479,4]
[330089610,1718989910811,-535.25,0.00025479,4]
[330089611,1718989910822,-887.04,0.00025479,4]
[330089612,1718989910834,-1378.35,0.00025479,4]
[330089613,1718989910844,-500.0,0.00025479,4]
[330089614,1718989910854,-500.0,0.00025479,4]
[330089615,1718989910865,-1812.66,0.00025479,4]
[330089616,1718989910875,-1256.45,0.00025479,4]
[330089617,1718989910884,-647.36,0.00025479,4]
[330089618,1718989910894,-772.11,0.00025479,4]
[330089619,1718989910903,-939.73,0.00025479,4]
[330089620,1718989910912,-1304.96,0.00025479,4]
[330089621,1718989910923,-1184.79,0.00025479,4]
[330089622,1718989910933,-1482.67,0.00025479,4]
[330089623,1718989910943,-1172.14,0.00025479,4]
[330089624,1718989910953,-499.42,0.00025479,4]
[330089625,1718989910963,-500.0,0.00025479,4]
[330089626,1718989910973,-1060.14,0.00025479,4]
[330089627,1718989910983,-3886.53,0.00025479,4]
[330089628,1718989910993,-654.99,0.00025479,4]
[330089629,1718989911003,-1021.14,0.00025479,4]
[330089630,1718989911012,-500.0,0.00025479,4]
[330089631,1718989911022,-25963.77,0.00025479,4]
[330089632,1718989911032,-1656.59,0.00025479,4]
[330089633,1718989911042,-1438.15,0.00025479,4]
[330089634,1718989911051,-500.0,0.00025479,4]
[330089635,1718989911061,-1558.07,0.00025479,4]
[330089636,1718989911071,-500.0,0.00025479,4]
[330089637,1718989911081,-1774.24,0.00025479,4]
[330089638,1718989911090,-1206.43,0.00025479,4]
[330089639,1718989911104,-1123.84,0.00025479,4]
[330089640,1718989911116,-1807.53,0.00025479,4]
[330089641,1718989911126,-1718.78,0.00025479,4]
[330089642,1718989911136,-169.01402501,0.00025479,4]
[330089643,1718989911146,-736.5,0.00025479,4]
[330089644,1718989911155,-698.0,0.0002555,3]
[330089645,1718989911165,-6421.9,0.00025639,7]
[330089646,1718989911174,-6421.9,0.00025639,7]
[330089647,1718989911186,-4089.57,0.000257,2]
[330089648,1718989911198,-14591.62,0.000257,2]
[330089649,1718989911208,-3920.37,0.000257,2]
[330089650,1718989911217,-154.59692945,0.00025702,2]
[330089651,1718989911227,-7983.7166335,0.00025724,2]
[330089652,1718989911237,-23785.2704374,0.00025724,2]
[330089653,1718989911247,-1412.7234442,0.00025724,2]
[330089654,1718989911256,-1356.86,0.00025729,4]
[330089655,1718989911266,-3062.37,0.00025729,4]
[330089656,1718989911278,-1533.09,0.00025729,4]
[330089657,1718989911295,-5990.91,0.00025729,4]
[330089658,1718989911308,-1110.17,0.00025729,4]
[330089659,1718989911318,-11925.19,0.00025729,4]
[330089660,1718989911330,-3672.46,0.00025729,4]
[330089661,1718989911341,-6178.73,0.00025729,4]
[330089662,1718989911351,-1501.96,0.00025729,4]
[330089663,1718989911362,-3518.52,0.00025729,4]
[330089664,1718989911372,-26745.2171449,0.00025734,2]
[330089665,1718989911383,-1989.12,0.00025741,4]
[330089666,1718989911393,-2398.6,0.00025741,4]
[330089667,1718989911404,-42723.34,0.00025741,4]
[330089668,1718989911414,-1860.96,0.00025741,4]
[330089669,1718989911424,-7757.24,0.00025741,4]
[330089670,1718989911436,-2969.44,0.00025741,4]
[330089671,1718989911445,-500.0,0.00025741,2]
[330089672,1718989911456,-2619.5,0.00025741,4]
[330089673,1718989911465,-4343.94,0.00025741,4]
[330089674,1718989911476,-946.76,0.00025741,4]
[330089675,1718989911489,-1067.33,0.00025741,4]
[330089676,1718989911499,-11069.13,0.00025741,4]
[330089677,1718989911508,-2041.56,0.00025741,4]
[330089678,1718989911518,-2855.93,0.00025741,4]
[330089679,1718989911528,-1902.36,0.00025741,4]
[330089680,1718989911538,-871.25,0.00025742,4]
[330089681,1718989911549,-2040.63,0.00025742,4]
[330089682,1718989911559,-1063.28,0.00025742,4]
[330089683,1718989911568,-2566.45,0.00025742,4]
[330089684,1718989911578,-1747.85,0.00025742,4]
[330089685,1718989911589,-574.66,0.00025742,4]
[330089686,1718989911600,-1705.93,0.00025742,4]
[330089687,1718989911610,-500.0,0.00025742,4]
[330089688,1718989911621,-285.48068289,0.00025742,4]
[330089689,1718989911632,-790.72,0.00025742,4]
[330089690,1718989911642,-614.11,0.00025742,4]
[330089691,1718989911652,-1508.15,0.00025742,4]
[330089692,1718989911663,-500.0,0.00025742,4]
[330089693,1718989911673,-655.33,0.00025742,4]
[330089694,1718989911683,-900.76,0.00025742,4]
[330089695,1718989911693,-1711.8,0.00025742,4]
[330089696,1718989911703,-500.0,0.00025742,4]
[330089697,1718989911713,-500.0,0.00025742,4]
[330089698,1718989911723,-1259.32,0.00025742,4]
[330089699,1718989911732,-543.58,0.00025742,4]
[330089700,1718989911742,-1395.51,0.00025742,4]
[330089701,1718989911752,-500.0,0.00025742,4]
[330089702,1718989911762,-779.08,0.00025742,4]
[330089703,1718989911771,-882.56,0.00025742,4]
[330089704,1718989911781,-1115.61,0.00025742,4]
[330089705,1718989911791,-500.0,0.00025742,4]
[330089706,1718989911801,-500.0,0.00025742,4]
[330089707,1718989911810,-500.0,0.00025742,4]
[330089708,1718989911822,-500.0,0.00025742,4]
[330089709,1718989911831,-1759.77,0.00025742,4]
[330089710,1718989911841,-500.0,0.00025742,4]
[330089711,1718989911851,-500.0,0.00025742,4]
[330089712,1718989911861,-562.58,0.00025742,4]
[330089713,1718989911871,-500.0,0.00025742,4]
[330089714,1718989911881,-1118.22,0.00025742,4]
[330089715,1718989911891,-500.0,0.00025742,4]
[330089716,1718989911901,-1073.61,0.00025742,4]
[330089717,1718989911911,-648.27324589,0.00025742,4]
[330089718,1718989911921,-1028.37,0.00025742,4]
[330089719,1718989911931,-565.65,0.00025742,4]
[330089720,1718989911941,-1694.42,0.00025742,4]
[330089721,1718989911950,-538.43,0.00025742,4]
[330089722,1718989911960,-1124.0,0.00025742,4]
[330089723,1718989911970,-1310.65,0.00025742,4]
[330089724,1718989911980,-500.0,0.00025742,4]
[330089725,1718989911990,-1974.58,0.00025742,4]
[330089726,1718989912000,-1560.47,0.00025742,4]
[330089727,1718989912010,-1456.87,0.00025742,4]
[330089728,1718989912019,-500.0,0.00025742,4]
[330089729,1718989912029,-1350.6,0.00025742,4]
[330089730,1718989912039,-766.53,0.00025742,4]
[330089731,1718989912048,-418.48,0.00025742,4]
[330089732,1718989912058,-209.58,0.00025742,4]
[330089733,1718989912068,-1549.35,0.00025742,4]
[330089734,1718989912077,-1457.49,0.00025742,4]
[330089735,1718989912087,-1276.6,0.00025742,4]
[330089736,1718989912096,-661.51,0.00025742,4]
[330089737,1718989912106,-616.1,0.00025742,4]
[330089738,1718989912119,-759.07,0.00025742,4]
[330089739,1718989912129,-1007.76,0.00025742,4]
[330089740,1718989912138,-558.75,0.00025742,4]
[330089741,1718989912148,-520.63,0.00025742,4]
[330089742,1718989912159,-500.0,0.00025742,4]
[330089743,1718989912168,-500.0,0.00025742,4]
[330089744,1718989912178,-750.4,0.00025742,4]
[330089745,1718989912188,-500.0,0.00025742,4]
[330089746,1718989912201,-500.0,0.00025742,4]
[330089747,1718989912210,-500.0,0.00025742,4]
[330089748,1718989912219,-500.0,0.00025742,4]
[330089749,1718989912229,-674.53,0.00025742,4]
[330089750,1718989912239,-919.98,0.00025742,4]
[330089751,1718989912248,-1723.58,0.00025742,4]
[330089752,1718989912258,-500.0,0.00025742,4]
[330089753,1718989912267,-572.44,0.00025742,4]
[330089754,1718989912277,-966.63,0.00025742,4]
[330089755,1718989912286,-500.0,0.00025742,4]
[330089756,1718989912296,-574.64,0.00025742,4]
[330089757,1718989912306,-257.1300291,0.00025742,4]
[330089758,1718989912317,-551.74,0.00025742,4]
[330089759,1718989912327,-500.0,0.00025742,4]
[330089760,1718989912337,-853.88,0.00025742,4]
[330089761,1718989912346,-769.31,0.00025742,4]
[330089762,1718989912356,-2295.96,0.00025742,5]
[330089763,1718989912366,-500.0,0.00025742,4]
[330089764,1718989912376,-584.18,0.00025742,4]
[330089765,1718989912387,-754.91,0.00025742,4]
[330089766,1718989912396,-500.0,0.00025742,4]
[330089767,1718989912407,-920.79,0.00025742,4]
[330089768,1718989912418,-2478.71,0.00025742,4]
[330089769,1718989912429,-843.52,0.00025742,4]
[330089770,1718989912438,-667.94,0.00025742,4]
[330089771,1718989912448,-878.77,0.00025742,4]
[330089772,1718989912458,-1915.42,0.00025742,4]
[330089773,1718989912468,-500.0,0.00025742,4]
[330089774,1718989912478,-1207.42,0.00025742,4]
[330089775,1718989912491,-500.0,0.00025742,4]
[330089776,1718989912500,-944.02,0.00025742,4]
[330089777,1718989912510,-1304.29,0.00025742,4]
[330089778,1718989912520,-500.0,0.00025742,4]
[330089779,1718989912532,-729.79,0.00025742,4]
[330089780,1718989912541,-1256.24,0.00025742,4]